[Event "Titled Tuesday Blitz September 21 2021"]
[White "Xiong, Jeffery"]
[Black "Bendayan Claros, Aaron"]
[WhiteFideId "2047640"]
[BlackFideId "3803392"]
[WhiteElo "2699"]
[BlackElo "2133"]
[Result "1-0"]
[Round "01"]
[TimeControl "180+1"]
[Date "2021.09.21"]
[WhiteClock "0:00:11"]
[BlackClock "0:00:01"]

1. d4 {[%clk 0:03:00]}  d5 {[%clk 0:02:58]} 2. c4 {[%clk 0:03:00]}  e6 {[%clk 0:02:57]} 3. Nf3 {[%clk 0:03:01]}  Nf6 {[%clk 0:02:56]} 4. e3 {[%clk 0:03:01]}  b6 {[%clk 0:02:33]} 5. b3 {[%clk 0:03:01]}  Bb7 {[%clk 0:02:33]} 6. Bd3 {[%clk 0:03:01]}  Bd6 {[%clk 0:02:33]} 7. O-O {[%clk 0:03:01]}  Nbd7 {[%clk 0:02:33]} 8. cxd5 {[%clk 0:03:01]}  exd5 {[%clk 0:02:33]} 9. Ba3 {[%clk 0:03:02]}  Qe7 {[%clk 0:02:33]} 10. Bxd6 {[%clk 0:03:02]}  Qxd6 {[%clk 0:02:33]} 11. Nc3 {[%clk 0:03:02]}  a6 {[%clk 0:02:34]} 12. Rc1 {[%clk 0:03:03]}  O-O {[%clk 0:02:33]} 13. Qc2 {[%clk 0:03:03]}  c5 {[%clk 0:02:28]} 14. Rfd1 {[%clk 0:03:03]}  Rfe8 {[%clk 0:02:16]} 15. dxc5 {[%clk 0:03:01]}  Nxc5 {[%clk 0:02:17]} 16. Ne2 {[%clk 0:02:55]}  Nxd3 {[%clk 0:02:13]} 17. Qxd3 {[%clk 0:02:55]}  Rac8 {[%clk 0:02:11]} 18. Ng3 {[%clk 0:02:54]}  h6 {[%clk 0:02:08]} 19. Nf5 {[%clk 0:02:51]}  Qa3 {[%clk 0:02:08]} 20. Rxc8 {[%clk 0:02:46]}  Rxc8 {[%clk 0:02:09]} 21. h3 {[%clk 0:02:42]}  Rc1 {[%clk 0:02:06]} 22. Kh2 {[%clk 0:01:36]}  Rxd1 {[%clk 0:02:02]} 23. Qxd1 {[%clk 0:01:37]}  Bc8 {[%clk 0:01:36]} 24. Qc2 {[%clk 0:01:12]}  Bxf5 {[%clk 0:01:28]} 25. Qxf5 {[%clk 0:01:13]}  Qxa2 {[%clk 0:01:19]} 26. Qc8+ {[%clk 0:01:13]}  Kh7 {[%clk 0:01:18]} 27. Qf5+ {[%clk 0:01:14]}  Kg8 {[%clk 0:01:18]} 28. Ne5 {[%clk 0:01:14]}  Qxb3 {[%clk 0:00:50]} 29. Qc8+ {[%clk 0:01:14]}  Kh7 {[%clk 0:00:50]} 30. Qf5+ {[%clk 0:01:15]}  Kg8 {[%clk 0:00:49]} 31. Qc8+ {[%clk 0:01:15]}  Kh7 {[%clk 0:00:49]} 32. Nxf7 {[%clk 0:01:16]}  Qb1 {[%clk 0:00:10]} 33. Qh8+ {[%clk 0:01:15]}  Kg6 {[%clk 0:00:10]} 34. Ne5+ {[%clk 0:01:16]}  Kf5 {[%clk 0:00:09]} 35. Nf3 {[%clk 0:01:17]}  Qf1 {[%clk 0:00:03]} 36. Qc8+ {[%clk 0:00:37]}  Kg6 {[%clk 0:00:02]} 37. Ne5+ {[%clk 0:00:37]}  Kh7 {[%clk 0:00:02]} 38. Qf5+ {[%clk 0:00:37]}  Kg8 {[%clk 0:00:01]} 39. Nc6 {[%clk 0:00:33]}  a5 {[%clk 0:00:01]} 40. Ne7+ {[%clk 0:00:29]}  Kh8 {[%clk 0:00:02]} 41. g4 {[%clk 0:00:23]}  a4 {[%clk 0:00:02]} 42. Ng6+ {[%clk 0:00:15]}  Kg8 {[%clk 0:00:01]} 43. Ne7+ {[%clk 0:00:15]}  Kh8 {[%clk 0:00:01]} 44. h4 {[%clk 0:00:16]}  a3 {[%clk 0:00:01]} 45. g5 {[%clk 0:00:15]}  hxg5 {[%clk 0:00:01]} 46. hxg5 {[%clk 0:00:16]}  a2 {[%clk 0:00:01]} 47. Qc8+ {[%clk 0:00:10]}  Kh7 {[%clk 0:00:01]} 48. Qf5+ {[%clk 0:00:11]}  Kh8 {[%clk 0:00:02]} 49. gxf6 {[%clk 0:00:11]}  a1=Q {[%clk 0:00:01]} 50. Qh5# {[%clk 0:00:11]} 1-0


[Site "https://www.chess.com"]

[Event "Titled Tuesday Blitz September 21 2021"]
[White "Yeletsky, Ivan"]
[Black "Yordanov, Nikolay Plamenov"]
[WhiteFideId "24180327"]
[BlackFideId "2907445"]
[WhiteElo "2344"]
[BlackElo "2248"]
[Result "1-0"]
[Round "01"]
[TimeControl "180+1"]
[Date "2021.09.21"]
[WhiteClock "0:01:07"]
[BlackClock "0:00:14"]

1. e4 {[%clk 0:03:00]}  c5 {[%clk 0:02:59]} 2. c3 {[%clk 0:02:58]}  Nf6 {[%clk 0:02:58]} 3. d3 {[%clk 0:02:57]}  Nc6 {[%clk 0:02:54]} 4. f4 {[%clk 0:02:56]}  e5 {[%clk 0:02:38]} 5. Nf3 {[%clk 0:02:55]}  d6 {[%clk 0:02:37]} 6. Na3 {[%clk 0:02:51]}  Be7 {[%clk 0:02:35]} 7. fxe5 {[%clk 0:02:44]}  dxe5 {[%clk 0:02:34]} 8. Nc4 {[%clk 0:02:44]}  Bg4 {[%clk 0:02:34]} 9. Ne3 {[%clk 0:02:42]}  Bh5 {[%clk 0:02:29]} 10. Be2 {[%clk 0:02:41]}  Qd7 {[%clk 0:02:16]} 11. a4 {[%clk 0:02:39]}  O-O {[%clk 0:02:13]} 12. O-O {[%clk 0:02:40]}  Rad8 {[%clk 0:02:13]} 13. Nc4 {[%clk 0:02:26]}  Bxf3 {[%clk 0:02:08]} 14. Bxf3 {[%clk 0:01:49]}  h6 {[%clk 0:02:05]} 15. Be2 {[%clk 0:01:47]}  b6 {[%clk 0:02:02]} 16. Ne3 {[%clk 0:01:44]}  Qe6 {[%clk 0:01:41]} 17. Qe1 {[%clk 0:01:43]}  Na5 {[%clk 0:01:33]} 18. Nf5 {[%clk 0:01:42]}  Nb3 {[%clk 0:01:30]} 19. Bxh6 {[%clk 0:01:41]}  Nxa1 {[%clk 0:01:12]} 20. Bxg7 {[%clk 0:01:38]}  Nh7 {[%clk 0:00:49]} 21. Bxf8 {[%clk 0:01:23]}  Bxf8 {[%clk 0:00:48]} 22. Qxa1 {[%clk 0:01:24]}  c4 {[%clk 0:00:37]} 23. dxc4 {[%clk 0:01:19]}  Rd2 {[%clk 0:00:37]} 24. Bh5 {[%clk 0:01:09]}  Ng5 {[%clk 0:00:27]} 25. Qe1 {[%clk 0:01:09]}  Rxb2 {[%clk 0:00:19]} 26. Qg3 {[%clk 0:01:09]}  f6 {[%clk 0:00:20]} 27. h4 {[%clk 0:01:09]}  Bc5+ {[%clk 0:00:20]} 28. Kh2 {[%clk 0:01:07]}  Kf8 {[%clk 0:00:15]} 29. hxg5 {[%clk 0:01:08]}  Qg8 {[%clk 0:00:14]} 30. gxf6 {[%clk 0:01:07]} 1-0


[Site "https://www.chess.com"]

[Event "Titled Tuesday Blitz September 21 2021"]
[White "pawel83"]
[Black "Williams, Simon K"]
[BlackFideId "404454"]
[WhiteElo "2349"]
[BlackElo "2468"]
[Result "0-1"]
[Round "01"]
[TimeControl "180+1"]
[Date "2021.09.21"]
[WhiteClock "0:00:14"]
[BlackClock "0:00:19"]

1. d4 {[%clk 0:02:46]}  e6 {[%clk 0:02:58]} 2. Nf3 {[%clk 0:02:45]}  f5 {[%clk 0:02:57]} 3. g3 {[%clk 0:02:45]}  Nf6 {[%clk 0:02:56]} 4. Bg2 {[%clk 0:02:46]}  Be7 {[%clk 0:02:53]} 5. O-O {[%clk 0:02:46]}  O-O {[%clk 0:02:51]} 6. c4 {[%clk 0:02:46]}  d6 {[%clk 0:02:51]} 7. Nc3 {[%clk 0:02:47]}  Ne4 {[%clk 0:02:50]} 8. Nxe4 {[%clk 0:02:46]}  fxe4 {[%clk 0:02:50]} 9. Ne1 {[%clk 0:02:46]}  d5 {[%clk 0:02:49]} 10. Nc2 {[%clk 0:02:46]}  c5 {[%clk 0:02:44]} 11. Be3 {[%clk 0:02:45]}  cxd4 {[%clk 0:02:41]} 12. Bxd4 {[%clk 0:02:41]}  Nc6 {[%clk 0:02:39]} 13. cxd5 {[%clk 0:02:38]}  exd5 {[%clk 0:02:39]} 14. e3 {[%clk 0:02:36]}  Bf5 {[%clk 0:02:24]} 15. Rc1 {[%clk 0:02:35]}  Qd7 {[%clk 0:02:24]} 16. b3 {[%clk 0:02:22]}  Rad8 {[%clk 0:02:19]} 17. Bb2 {[%clk 0:02:22]}  Bg4 {[%clk 0:02:15]} 18. f3 {[%clk 0:02:18]}  exf3 {[%clk 0:02:13]} 19. Bxf3 {[%clk 0:02:18]}  Rxf3 {[%clk 0:01:47]} 20. Rxf3 {[%clk 0:02:17]}  Bxf3 {[%clk 0:01:48]} 21. Qxf3 {[%clk 0:02:17]}  Rf8 {[%clk 0:01:48]} 22. Qe2 {[%clk 0:02:10]}  Bc5 {[%clk 0:01:38]} 23. Rf1 {[%clk 0:01:55]}  Rxf1+ {[%clk 0:01:35]} 24. Qxf1 {[%clk 0:01:54]}  Qf7 {[%clk 0:01:23]} 25. Qf4 {[%clk 0:01:49]}  Qxf4 {[%clk 0:01:22]} 26. gxf4 {[%clk 0:01:49]}  g6 {[%clk 0:01:21]} 27. Kg2 {[%clk 0:01:50]}  Kf7 {[%clk 0:01:21]} 28. Kf3 {[%clk 0:01:49]}  Ke6 {[%clk 0:01:21]} 29. Ne1 {[%clk 0:01:47]}  Bd6 {[%clk 0:01:10]} 30. a3 {[%clk 0:01:41]}  Na5 {[%clk 0:01:09]} 31. b4 {[%clk 0:01:38]}  Nc4 {[%clk 0:01:09]} 32. Bc1 {[%clk 0:01:38]}  Bc7 {[%clk 0:00:48]} 33. Nd3 {[%clk 0:01:33]}  Bb6 {[%clk 0:00:48]} 34. h3 {[%clk 0:01:26]}  a6 {[%clk 0:00:48]} 35. e4 {[%clk 0:01:21]}  dxe4+ {[%clk 0:00:47]} 36. Kxe4 {[%clk 0:01:21]}  Nd6+ {[%clk 0:00:47]} 37. Kf3 {[%clk 0:01:19]}  Bd4 {[%clk 0:00:42]} 38. Ne1 {[%clk 0:01:13]}  Kd5 {[%clk 0:00:41]} 39. Nc2 {[%clk 0:01:05]}  Nf5 {[%clk 0:00:39]} 40. Kg4 {[%clk 0:00:59]}  Bf6 {[%clk 0:00:31]} 41. Ne3+ {[%clk 0:00:47]}  Nxe3+ {[%clk 0:00:30]} 42. Bxe3 {[%clk 0:00:48]}  Ke4 {[%clk 0:00:30]} 43. Bc5 {[%clk 0:00:44]}  b5 {[%clk 0:00:29]} 44. Bd6 {[%clk 0:00:31]}  h5+ {[%clk 0:00:26]} 45. Kg3 {[%clk 0:00:31]}  Bb2 {[%clk 0:00:26]} 46. Kh4 {[%clk 0:00:29]}  Kf5 {[%clk 0:00:26]} 47. Kg3 {[%clk 0:00:28]}  Bxa3 {[%clk 0:00:26]} 48. Kf3 {[%clk 0:00:25]}  Bc1 {[%clk 0:00:26]} 49. Bc7 {[%clk 0:00:22]}  Bd2 {[%clk 0:00:20]} 50. Bd6 {[%clk 0:00:21]}  a5 {[%clk 0:00:20]} 51. bxa5 {[%clk 0:00:19]}  Bxa5 {[%clk 0:00:21]} 52. Be5 {[%clk 0:00:19]}  Bd2 {[%clk 0:00:20]} 53. h4 {[%clk 0:00:14]}  b4 {[%clk 0:00:20]} 54. Bd6 {[%clk 0:00:13]}  b3 {[%clk 0:00:20]} 55. Ba3 {[%clk 0:00:14]}  Bxf4 {[%clk 0:00:19]} 0-1


[Site "https://www.chess.com"]

[Event "Titled Tuesday Blitz September 21 2021"]
[White "Andreikin, Dmitry"]
[Black "Costachi, Mihnea"]
[WhiteFideId "4158814"]
[BlackFideId "1217518"]
[WhiteElo "2736"]
[BlackElo "2482"]
[Result "1-0"]
[Round "02"]
[TimeControl "180+1"]
[Date "2021.09.21"]
[WhiteClock "0:01:47"]
[BlackClock "0:00:38"]

1. c4 {[%clk 0:03:00]}  Nf6 {[%clk 0:02:59]} 2. Nc3 {[%clk 0:03:00]}  g6 {[%clk 0:02:58]} 3. e4 {[%clk 0:03:00]}  d6 {[%clk 0:02:59]} 4. d4 {[%clk 0:03:00]}  Bg7 {[%clk 0:02:59]} 5. h3 {[%clk 0:03:00]}  O-O {[%clk 0:03:00]} 6. Be3 {[%clk 0:03:00]}  c5 {[%clk 0:03:00]} 7. Nf3 {[%clk 0:02:59]}  cxd4 {[%clk 0:03:00]} 8. Nxd4 {[%clk 0:03:00]}  b6 {[%clk 0:03:01]} 9. g4 {[%clk 0:03:00]}  Bb7 {[%clk 0:03:01]} 10. Bg2 {[%clk 0:03:00]}  Nbd7 {[%clk 0:02:57]} 11. O-O {[%clk 0:03:00]}  Rc8 {[%clk 0:02:57]} 12. b3 {[%clk 0:03:00]}  Nc5 {[%clk 0:02:57]} 13. Qc2 {[%clk 0:03:00]}  a6 {[%clk 0:02:53]} 14. a4 {[%clk 0:02:58]}  Nfd7 {[%clk 0:02:44]} 15. Rad1 {[%clk 0:02:58]}  Ne5 {[%clk 0:02:40]} 16. f4 {[%clk 0:02:47]}  Nc6 {[%clk 0:02:40]} 17. Kh1 {[%clk 0:02:47]}  Nb4 {[%clk 0:02:37]} 18. Qb1 {[%clk 0:02:43]}  Rc7 {[%clk 0:02:27]} 19. Nd5 {[%clk 0:02:31]}  Bxd5 {[%clk 0:02:24]} 20. exd5 {[%clk 0:02:32]}  e5 {[%clk 0:02:11]} 21. dxe6 {[%clk 0:02:29]}  fxe6 {[%clk 0:02:12]} 22. f5 {[%clk 0:02:26]}  gxf5 {[%clk 0:01:59]} 23. gxf5 {[%clk 0:02:27]}  e5 {[%clk 0:02:00]} 24. Ne6 {[%clk 0:02:25]}  Qe7 {[%clk 0:01:22]} 25. Nxf8 {[%clk 0:02:21]}  Qxf8 {[%clk 0:01:21]} 26. f6 {[%clk 0:02:13]}  Bxf6 {[%clk 0:01:14]} 27. Qf5 {[%clk 0:02:09]}  Rf7 {[%clk 0:01:11]} 28. Bd2 {[%clk 0:02:09]}  Ncd3 {[%clk 0:00:59]} 29. Be4 {[%clk 0:02:01]}  Bd8 {[%clk 0:00:48]} 30. Qe6 {[%clk 0:01:51]}  Nc5 {[%clk 0:00:39]} 31. Bxh7+ {[%clk 0:01:49]}  Kg7 {[%clk 0:00:38]} 32. Qg6+ {[%clk 0:01:47]}  Kh8 {[%clk 0:00:38]} 33. Rxf7 {[%clk 0:01:47]} 1-0


[Site "https://www.chess.com"]

[Event "Titled Tuesday Blitz September 21 2021"]
[White "Avramidou, Anastasia"]
[Black "Yeletsky, Ivan"]
[WhiteFideId "4239873"]
[BlackFideId "24180327"]
[WhiteElo "2183"]
[BlackElo "2344"]
[Result "1-0"]
[Round "02"]
[TimeControl "180+1"]
[Date "2021.09.21"]
[WhiteClock "0:00:28"]
[BlackClock "0:00:04"]

1. c4 {[%clk 0:03:00]}  e5 {[%clk 0:02:54]} 2. Nc3 {[%clk 0:02:58]}  Nf6 {[%clk 0:02:53]} 3. Nf3 {[%clk 0:02:57]}  Nc6 {[%clk 0:02:53]} 4. e4 {[%clk 0:02:56]}  Bb4 {[%clk 0:02:52]} 5. d3 {[%clk 0:02:55]}  d6 {[%clk 0:02:51]} 6. Qc2 {[%clk 0:02:55]}  Bg4 {[%clk 0:02:48]} 7. Be3 {[%clk 0:02:54]}  Bxf3 {[%clk 0:02:47]} 8. gxf3 {[%clk 0:02:54]}  Nh5 {[%clk 0:02:45]} 9. a3 {[%clk 0:02:53]}  Bc5 {[%clk 0:02:45]} 10. b4 {[%clk 0:02:52]}  Bd4 {[%clk 0:02:41]} 11. Rg1 {[%clk 0:02:45]}  h6 {[%clk 0:02:34]} 12. b5 {[%clk 0:02:40]}  Bxc3+ {[%clk 0:02:03]} 13. Qxc3 {[%clk 0:02:41]}  Nd4 {[%clk 0:02:03]} 14. Bxd4 {[%clk 0:02:37]}  exd4 {[%clk 0:02:04]} 15. Qxd4 {[%clk 0:02:37]}  c5 {[%clk 0:02:04]} 16. bxc6 {[%clk 0:02:29]}  Qa5+ {[%clk 0:02:02]} 17. Kd1 {[%clk 0:02:27]}  Qa4+ {[%clk 0:01:58]} 18. Kc1 {[%clk 0:02:22]}  Qxc6 {[%clk 0:01:47]} 19. Qd5 {[%clk 0:02:21]}  g5 {[%clk 0:01:37]} 20. Qxc6+ {[%clk 0:02:18]}  bxc6 {[%clk 0:01:37]} 21. Rb1 {[%clk 0:02:19]}  c5 {[%clk 0:01:33]} 22. Be2 {[%clk 0:02:13]}  Nf4 {[%clk 0:01:33]} 23. Kd2 {[%clk 0:02:13]}  Ke7 {[%clk 0:01:30]} 24. Rb7+ {[%clk 0:02:13]}  Kf6 {[%clk 0:01:27]} 25. Rgb1 {[%clk 0:02:14]}  Rhd8 {[%clk 0:01:18]} 26. Bd1 {[%clk 0:02:12]}  Ne6 {[%clk 0:01:11]} 27. Ba4 {[%clk 0:02:05]}  h5 {[%clk 0:00:56]} 28. Ke3 {[%clk 0:02:02]}  Nf4 {[%clk 0:00:52]} 29. Bc6 {[%clk 0:01:56]}  Ng6 {[%clk 0:00:18]} 30. Bd5 {[%clk 0:01:56]}  Ne5 {[%clk 0:00:18]} 31. a4 {[%clk 0:01:52]}  a5 {[%clk 0:00:18]} 32. R1b6 {[%clk 0:01:45]}  Kg7 {[%clk 0:00:16]} 33. Rb5 {[%clk 0:01:24]}  Rdc8 {[%clk 0:00:14]} 34. R7b6 {[%clk 0:01:14]}  Ra7 {[%clk 0:00:12]} 35. Rxd6 {[%clk 0:01:14]}  Re7 {[%clk 0:00:08]} 36. Rxa5 {[%clk 0:01:07]}  f5 {[%clk 0:00:08]} 37. Rb5 {[%clk 0:00:55]}  f4+ {[%clk 0:00:06]} 38. Ke2 {[%clk 0:00:55]}  g4 {[%clk 0:00:06]} 39. fxg4 {[%clk 0:00:55]}  hxg4 {[%clk 0:00:07]} 40. a5 {[%clk 0:00:51]}  Rh8 {[%clk 0:00:07]} 41. a6 {[%clk 0:00:45]}  f3+ {[%clk 0:00:05]} 42. Ke3 {[%clk 0:00:42]}  g3 {[%clk 0:00:05]} 43. hxg3 {[%clk 0:00:40]}  Rf8 {[%clk 0:00:05]} 44. Rb7 {[%clk 0:00:33]}  Ng4+ {[%clk 0:00:05]} 45. Kd2 {[%clk 0:00:34]}  Re8 {[%clk 0:00:04]} 46. Rxe7+ {[%clk 0:00:29]}  Rxe7 {[%clk 0:00:05]} 47. Rb6 {[%clk 0:00:28]}  Nxf2 {[%clk 0:00:04]} 48. Rb7 {[%clk 0:00:28]} 1-0


[Site "https://www.chess.com"]

[Event "Titled Tuesday Blitz September 21 2021"]
[White "Bilan, Danila"]
[Black "Kozak, Adam"]
[WhiteFideId "24161918"]
[BlackFideId "753246"]
[WhiteElo "2164"]
[BlackElo "2448"]
[Result "0-1"]
[Round "02"]
[TimeControl "180+1"]
[Date "2021.09.21"]
[WhiteClock "0:00:04"]
[BlackClock "0:01:36"]

1. d4 {[%clk 0:03:00]}  Nf6 {[%clk 0:02:56]} 2. Nf3 {[%clk 0:03:01]}  c5 {[%clk 0:02:56]} 3. e3 {[%clk 0:03:00]}  b6 {[%clk 0:02:56]} 4. c4 {[%clk 0:02:59]}  e6 {[%clk 0:02:55]} 5. Nc3 {[%clk 0:02:59]}  cxd4 {[%clk 0:02:55]} 6. Nxd4 {[%clk 0:02:57]}  Bb7 {[%clk 0:02:55]} 7. b3 {[%clk 0:02:51]}  Bb4 {[%clk 0:02:54]} 8. Bd2 {[%clk 0:02:51]}  O-O {[%clk 0:02:53]} 9. f3 {[%clk 0:02:45]}  d5 {[%clk 0:02:51]} 10. Be2 {[%clk 0:02:40]}  e5 {[%clk 0:02:51]} 11. Nc2 {[%clk 0:02:35]}  Bc5 {[%clk 0:02:50]} 12. cxd5 {[%clk 0:02:26]}  Nxd5 {[%clk 0:02:50]} 13. Nxd5 {[%clk 0:02:23]}  Qxd5 {[%clk 0:02:51]} 14. Bc3 {[%clk 0:02:12]}  Qe6 {[%clk 0:02:45]} 15. O-O {[%clk 0:02:06]}  Nc6 {[%clk 0:02:43]} 16. Bc4 {[%clk 0:02:02]}  Qg6 {[%clk 0:02:41]} 17. Qe2 {[%clk 0:02:01]}  a5 {[%clk 0:02:37]} 18. Rad1 {[%clk 0:01:54]}  Bc8 {[%clk 0:02:26]} 19. Bd5 {[%clk 0:01:40]}  Ba6 {[%clk 0:02:16]} 20. Bc4 {[%clk 0:01:28]}  Bxc4 {[%clk 0:02:14]} 21. bxc4 {[%clk 0:01:29]}  Rfe8 {[%clk 0:02:12]} 22. Kh1 {[%clk 0:01:22]}  h5 {[%clk 0:02:05]} 23. Rd5 {[%clk 0:01:13]}  Nb4 {[%clk 0:02:02]} 24. Nxb4 {[%clk 0:00:59]}  axb4 {[%clk 0:02:03]} 25. Bxe5 {[%clk 0:00:57]}  Ra3 {[%clk 0:01:58]} 26. e4 {[%clk 0:00:41]}  Rea8 {[%clk 0:01:55]} 27. Rd2 {[%clk 0:00:37]}  Qe6 {[%clk 0:01:51]} 28. f4 {[%clk 0:00:20]}  Re3 {[%clk 0:01:47]} 29. Qxh5 {[%clk 0:00:18]}  Qxc4 {[%clk 0:01:47]} 30. Rfd1 {[%clk 0:00:17]}  Qxe4 {[%clk 0:01:47]} 31. Rd8+ {[%clk 0:00:14]}  Bf8 {[%clk 0:01:46]} 32. h3 {[%clk 0:00:06]}  Re1+ {[%clk 0:01:45]} 33. Kh2 {[%clk 0:00:05]}  Rxd1 {[%clk 0:01:45]} 34. Rxa8 {[%clk 0:00:06]}  Qxa8 {[%clk 0:01:43]} 35. Qxd1 {[%clk 0:00:04]}  Qxa2 {[%clk 0:01:43]} 36. Qd8 {[%clk 0:00:04]}  Qe6 {[%clk 0:01:42]} 37. Qd4 {[%clk 0:00:01]}  b3 {[%clk 0:01:42]} 38. Qb2 {[%clk 0:00:02]}  g6 {[%clk 0:01:42]} 39. Bd4 {[%clk 0:00:02]}  Bc5 {[%clk 0:01:42]} 40. Bxc5 {[%clk 0:00:02]}  bxc5 {[%clk 0:01:43]} 41. Qc3 {[%clk 0:00:03]}  c4 {[%clk 0:01:43]} 42. Qb4 {[%clk 0:00:03]}  Qd5 {[%clk 0:01:42]} 43. Qb8+ {[%clk 0:00:02]}  Kg7 {[%clk 0:01:42]} 44. h4 {[%clk 0:00:03]}  c3 {[%clk 0:01:40]} 45. h5 {[%clk 0:00:03]}  Qxh5+ {[%clk 0:01:40]} 46. Kg3 {[%clk 0:00:03]}  Qd5 {[%clk 0:01:40]} 47. Qc8 {[%clk 0:00:03]}  c2 {[%clk 0:01:40]} 48. Qc3+ {[%clk 0:00:03]}  Kh7 {[%clk 0:01:40]} 49. Kg4 {[%clk 0:00:04]}  Qd1+ {[%clk 0:01:36]} 50. Kg5 {[%clk 0:00:04]}  c1=Q {[%clk 0:01:36]} 51. Qf6 {[%clk 0:00:04]}  Qh5# {[%clk 0:01:36]} 0-1


[Site "https://www.chess.com"]

[Event "Titled Tuesday Blitz September 21 2021"]
[White "Bortnyk, Olexandr"]
[Black "Grunberg, Mihai-Lucian"]
[WhiteFideId "14120828"]
[BlackFideId "1204149"]
[WhiteElo "2723"]
[BlackElo "2364"]
[Result "1-0"]
[Round "02"]
[TimeControl "180+1"]
[Date "2021.09.21"]
[WhiteClock "0:00:33"]
[BlackClock "0:01:27"]

1. d4 {[%clk 0:02:35]}  Nf6 {[%clk 0:03:00]} 2. Nc3 {[%clk 0:02:33]}  g6 {[%clk 0:03:01]} 3. e4 {[%clk 0:02:30]}  d6 {[%clk 0:03:01]} 4. Bg5 {[%clk 0:02:28]}  Bg7 {[%clk 0:03:01]} 5. Qd2 {[%clk 0:02:26]}  h6 {[%clk 0:03:01]} 6. Bh4 {[%clk 0:02:26]}  a6 {[%clk 0:02:58]} 7. a4 {[%clk 0:02:21]}  Nc6 {[%clk 0:02:55]} 8. Nf3 {[%clk 0:01:35]}  Bg4 {[%clk 0:02:46]} 9. Be2 {[%clk 0:01:33]}  g5 {[%clk 0:02:44]} 10. Bg3 {[%clk 0:01:33]}  Bxf3 {[%clk 0:02:42]} 11. Bxf3 {[%clk 0:01:30]}  e5 {[%clk 0:02:43]} 12. dxe5 {[%clk 0:01:27]}  dxe5 {[%clk 0:02:42]} 13. O-O-O {[%clk 0:01:25]}  Qxd2+ {[%clk 0:02:40]} 14. Rxd2 {[%clk 0:01:25]}  Rd8 {[%clk 0:02:27]} 15. Rxd8+ {[%clk 0:01:17]}  Kxd8 {[%clk 0:02:27]} 16. h4 {[%clk 0:01:15]}  g4 {[%clk 0:02:25]} 17. Be2 {[%clk 0:01:16]}  h5 {[%clk 0:02:24]} 18. Bc4 {[%clk 0:01:07]}  Ke7 {[%clk 0:02:11]} 19. Re1 {[%clk 0:01:07]}  Nd4 {[%clk 0:01:50]} 20. Bxe5 {[%clk 0:01:04]}  Ne8 {[%clk 0:01:50]} 21. Nd5+ {[%clk 0:00:57]}  Kd7 {[%clk 0:01:49]} 22. Bg3 {[%clk 0:00:39]}  c6 {[%clk 0:01:46]} 23. Nb6+ {[%clk 0:00:36]}  Ke7 {[%clk 0:01:46]} 24. Rd1 {[%clk 0:00:34]}  Rh6 {[%clk 0:01:28]} 25. c3 {[%clk 0:00:32]}  Ne6 {[%clk 0:01:28]} 26. Rd7+ {[%clk 0:00:32]}  Kf8 {[%clk 0:01:28]} 27. Rxb7 {[%clk 0:00:33]}  Nc5 {[%clk 0:01:27]} 28. Rxf7+ {[%clk 0:00:33]} 1-0


[Site "https://www.chess.com"]

[Event "Titled Tuesday Blitz September 21 2021"]
[White "Coelho, Ramyres Santana"]
[Black "Horobetz, Graham"]
[WhiteFideId "2120690"]
[BlackFideId "2047322"]
[WhiteElo "1888"]
[BlackElo "2636"]
[Result "1-0"]
[Round "02"]
[TimeControl "180+1"]
[Date "2021.09.21"]
[WhiteClock "0:00:05"]
[BlackClock "0:00:08"]

1. e4 {[%clk 0:03:00]}  c5 {[%clk 0:02:59]} 2. Nf3 {[%clk 0:03:00]}  d6 {[%clk 0:03:00]} 3. d4 {[%clk 0:03:00]}  cxd4 {[%clk 0:03:01]} 4. Nxd4 {[%clk 0:03:01]}  Nf6 {[%clk 0:03:01]} 5. Nc3 {[%clk 0:03:01]}  a6 {[%clk 0:03:02]} 6. f3 {[%clk 0:03:01]}  e5 {[%clk 0:03:02]} 7. Nb3 {[%clk 0:03:02]}  Be7 {[%clk 0:03:03]} 8. Be3 {[%clk 0:03:02]}  Be6 {[%clk 0:03:03]} 9. Qd2 {[%clk 0:03:03]}  h5 {[%clk 0:03:03]} 10. O-O-O {[%clk 0:03:03]}  Nbd7 {[%clk 0:03:01]} 11. Kb1 {[%clk 0:03:04]}  Rc8 {[%clk 0:03:01]} 12. h3 {[%clk 0:03:03]}  Qc7 {[%clk 0:02:58]} 13. Bd3 {[%clk 0:03:03]}  h4 {[%clk 0:02:58]} 14. f4 {[%clk 0:03:01]}  b5 {[%clk 0:02:56]} 15. f5 {[%clk 0:02:51]}  Bc4 {[%clk 0:02:56]} 16. Bxc4 {[%clk 0:02:47]}  bxc4 {[%clk 0:02:40]} 17. Nc1 {[%clk 0:02:42]}  Qb7 {[%clk 0:02:41]} 18. N1e2 {[%clk 0:02:28]}  Nxe4 {[%clk 0:02:32]} 19. Nxe4 {[%clk 0:02:28]}  Qxe4 {[%clk 0:02:33]} 20. Nc3 {[%clk 0:02:21]}  Qc6 {[%clk 0:02:33]} 21. Nd5 {[%clk 0:02:18]}  Nf6 {[%clk 0:02:31]} 22. Nxe7 {[%clk 0:02:16]}  Kxe7 {[%clk 0:02:32]} 23. Bg5 {[%clk 0:02:15]}  c3 {[%clk 0:02:23]} 24. bxc3 {[%clk 0:02:13]}  Rb8+ {[%clk 0:02:17]} 25. Ka1 {[%clk 0:02:12]}  Rhc8 {[%clk 0:02:18]} 26. c4 {[%clk 0:02:10]}  Rb6 {[%clk 0:02:07]} 27. Rb1 {[%clk 0:01:52]}  Rxb1+ {[%clk 0:01:57]} 28. Rxb1 {[%clk 0:01:53]}  Qxc4 {[%clk 0:01:57]} 29. Rb7+ {[%clk 0:01:50]}  Rc7 {[%clk 0:01:58]} 30. Rxc7+ {[%clk 0:01:43]}  Qxc7 {[%clk 0:01:59]} 31. Qd3 {[%clk 0:01:28]}  Qb7 {[%clk 0:01:53]} 32. Qe2 {[%clk 0:01:17]}  Kf8 {[%clk 0:01:32]} 33. Bxf6 {[%clk 0:01:16]}  gxf6 {[%clk 0:01:33]} 34. Qf2 {[%clk 0:01:12]}  Qb4 {[%clk 0:01:24]} 35. Qe2 {[%clk 0:00:46]}  a5 {[%clk 0:01:12]} 36. Qd3 {[%clk 0:00:37]}  Qc5 {[%clk 0:00:52]} 37. Kb2 {[%clk 0:00:29]}  d5 {[%clk 0:00:51]} 38. Qf3 {[%clk 0:00:20]}  e4 {[%clk 0:00:46]} 39. Qf4 {[%clk 0:00:18]}  Qb4+ {[%clk 0:00:41]} 40. Kc1 {[%clk 0:00:16]}  Qa3+ {[%clk 0:00:39]} 41. Kb1 {[%clk 0:00:15]}  Qg3 {[%clk 0:00:32]} 42. Qxg3 {[%clk 0:00:11]}  hxg3 {[%clk 0:00:33]} 43. Kc1 {[%clk 0:00:12]}  d4 {[%clk 0:00:34]} 44. Kd2 {[%clk 0:00:12]}  Kg7 {[%clk 0:00:33]} 45. c3 {[%clk 0:00:11]}  e3+ {[%clk 0:00:15]} 46. Kd3 {[%clk 0:00:11]}  dxc3 {[%clk 0:00:15]} 47. Kxc3 {[%clk 0:00:11]}  Kh6 {[%clk 0:00:13]} 48. Kd3 {[%clk 0:00:04]}  e2 {[%clk 0:00:13]} 49. Kxe2 {[%clk 0:00:05]}  Kg5 {[%clk 0:00:13]} 50. Kf3 {[%clk 0:00:05]}  Kxf5 {[%clk 0:00:14]} 51. Kxg3 {[%clk 0:00:06]}  Ke4 {[%clk 0:00:13]} 52. h4 {[%clk 0:00:05]}  a4 {[%clk 0:00:10]} 53. Kg4 {[%clk 0:00:03]}  f5+ {[%clk 0:00:09]} 54. Kg5 {[%clk 0:00:03]}  f6+ {[%clk 0:00:08]} 55. Kg6 {[%clk 0:00:04]}  f4 {[%clk 0:00:06]} 56. h5 {[%clk 0:00:05]}  Ke3 {[%clk 0:00:07]} 57. h6 {[%clk 0:00:04]}  f3 {[%clk 0:00:08]} 58. gxf3 {[%clk 0:00:04]}  f5 {[%clk 0:00:08]} 59. Kxf5 {[%clk 0:00:05]} 1-0


[Site "https://www.chess.com"]